bitfinex/quotes_BTCUSD_20250331
["timestamp","ask_amount","ask_price","bid_price","bid_amount"]
[1743395470517,0.26261009,81683.0,81682.0,0.0753002]
[1743395471305,0.26261009,81683.0,81682.0,2e-07]
[1743395471664,0.26061009,81683.0,81682.0,2e-07]
[1743395472110,0.26061009,81683.0,81682.0,0.1437202]
[1743395473203,0.26061009,81683.0,81682.0,0.1447202]
[1743395473969,0.26077829,81683.0,81682.0,0.1447202]
[1743395478921,0.56077829,81683.0,81682.0,0.0020002]
[1743395479118,0.59763955,81683.0,81682.0,0.0020002]
[1743395479280,0.56077829,81683.0,81682.0,0.0020002]
[1743395480111,0.56077829,81683.0,81682.0,0.0010002]
[1743395480450,0.56177829,81683.0,81682.0,0.0010002]
[1743395481210,0.56177829,81683.0,81682.0,2e-07]
[1743395481661,0.56277829,81683.0,81682.0,2e-07]
[1743395481857,0.58742902,81683.0,81682.0,2e-07]
[1743395484132,0.62429028,81683.0,81682.0,2e-07]
[1743395484262,0.58742902,81683.0,81682.0,2e-07]
[1743395486011,0.68715763,81683.0,81682.0,2e-07]
[1743395486214,0.75991838,81683.0,81682.0,2e-07]
[1743395486899,0.66018977,81683.0,81682.0,2e-07]
[1743395487105,0.59867778,81683.0,81682.0,2e-07]
[1743395487303,0.62303489,81683.0,81682.0,2e-07]
[1743395487912,0.56277829,81683.0,81682.0,2e-07]
[1743395488115,0.00585049,81683.0,81682.0,0.1426802]
[1743395488315,0.26294049,81683.0,81682.0,2e-07]
[1743395488899,0.26194049,81683.0,81682.0,2e-07]
[1743395489100,0.56094049,81683.0,81682.0,2e-07]
[1743395495273,0.67091598,81683.0,81682.0,2e-07]
[1743395495480,0.72021598,81683.0,81682.0,2e-07]
[1743395495654,0.79298203,81683.0,81682.0,2e-07]
[1743395496264,0.82821797,81683.0,81682.0,2e-07]
[1743395496692,0.68300654,81683.0,81682.0,2e-07]
[1743395497098,0.59684528,81683.0,81682.0,2e-07]
[1743395498852,0.63370654,81683.0,81682.0,2e-07]
[1743395501052,0.71450654,81683.0,81682.0,2e-07]
[1743395502059,0.76840654,81683.0,81682.0,2e-07]
[1743395502314,0.88969137,81683.0,81682.0,2e-07]
[1743395502506,0.89069137,81683.0,81682.0,2e-07]
[1743395502941,0.88969137,81683.0,81682.0,2e-07]
[1743395503771,0.88869137,81683.0,81682.0,2e-07]
[1743395504289,0.89369137,81683.0,81682.0,2e-07]
[1743395504498,0.92892739,81683.0,81682.0,2e-07]
[1743395505154,0.93492739,81683.0,81682.0,2e-07]
[1743395505816,1.35302739,81683.0,81682.0,2e-07]
[1743395508732,1.19250654,81683.0,81682.0,2e-07]
[1743395508908,1.02594528,81683.0,81682.0,2e-07]
[1743395509111,0.72594528,81683.0,81682.0,2e-07]
[1743395509516,1.02594528,81683.0,81682.0,2e-07]
[1743395510206,0.98404049,81683.0,81682.0,2e-07]
[1743395510821,0.97904049,81683.0,81682.0,2e-07]
[1743395511282,0.98404049,81683.0,81682.0,2e-07]
[1743395511792,0.57094049,81683.0,81682.0,2e-07]
[1743395514054,0.64366724,81683.0,81682.0,2e-07]
[1743395518225,0.60680598,81683.0,81682.0,2e-07]
[1743395519110,0.57094049,81683.0,81682.0,2e-07]
[1743395520736,0.57094049,81683.0,81682.0,0.0754002]
[1743395521776,0.56594049,81683.0,81682.0,0.0754002]
[1743395521981,0.00885049,81683.0,81682.0,0.1226002]
[1743395522134,0.00385049,81683.0,81682.0,0.1226002]
[1743395522340,0.01609249,81683.0,81682.0,0.1226002]
[1743395522543,0.01809249,81683.0,81682.0,0.1226002]
[1743395523393,0.01709249,81683.0,81682.0,0.2652802]
[1743395523598,0.01709249,81683.0,81682.0,2e-07]
[1743395523796,0.01709249,81683.0,81682.0,0.0010002]
[1743395523797,0.31709249,81683.0,81682.0,0.0010002]
[1743395523971,0.35295375,81683.0,81682.0,0.0010002]
[1743395524318,0.35295375,81683.0,81682.0,0.0020002]
[1743395524721,0.31609249,81683.0,81682.0,0.0020002]
[1743395524997,0.31609249,81683.0,81682.0,2e-07]
[1743395525381,0.31809249,81683.0,81682.0,2e-07]
[1743395525576,0.31709249,81683.0,81682.0,2e-07]
[1743395525774,0.31609249,81683.0,81682.0,2e-07]
[1743395525986,0.31809249,81683.0,81682.0,2e-07]
[1743395527125,0.32009249,81683.0,81682.0,2e-07]
[1743395527950,0.32009249,81683.0,81682.0,0.0754002]
[1743395528268,0.32009249,81683.0,81682.0,0.1226002]
[1743395528867,0.56494049,81683.0,81682.0,0.1226002]
[1743395529073,0.56294049,81683.0,81682.0,0.2652802]
[1743395529455,0.30585049,81683.0,81682.0,0.2652802]
[1743395529838,0.30385049,81683.0,81682.0,0.2652802]
[1743395530037,0.00385049,81683.0,81682.0,0.2652802]
[1743395530236,0.00385049,81683.0,81682.0,0.5233732]
[1743395530442,0.0001682,81683.0,81682.0,0.2662802]
[1743395530880,0.0001682,81683.0,81682.0,0.2672802]
[1743395531395,0.0001682,81683.0,81682.0,0.2662802]
[1743395531718,0.0001682,81683.0,81682.0,0.2652802]
[1743395531913,0.0001682,81683.0,81682.0,0.2712802]
[1743395532324,0.00368775,81683.0,81682.0,0.2712802]
[1743395532572,0.0001682,81683.0,81682.0,1.17899405]
[1743395532760,0.00368775,81683.0,81682.0,1.29927888]
[1743395532914,0.0001682,81688.0,81687.0,0.39421785]
[1743395533118,0.0001682,81688.0,81687.0,0.51450268]
[1743395535446,0.248711,81729.0,81702.0,0.15767985]
[1743395535649,0.248711,81729.0,81702.0,0.42064468]
[1743395535849,0.260946,81729.0,81702.0,0.42064468]
[1743395536050,0.256952,81727.0,81702.0,0.42064468]
[1743395536647,0.244724,81725.0,81702.0,0.42064468]
[1743395536921,0.012237,81719.0,81702.0,0.15767985]
[1743395537364,0.012238,81710.0,81702.0,0.143139]
[1743395537554,0.012239,81706.0,81702.0,0.27354]
[1743395537912,0.00385635,81703.0,81702.0,0.27954]
[1743395538114,0.00038395,81703.0,81702.0,0.28554]
[1743395538316,0.0039035,81703.0,81702.0,0.27954]
[1743395538494,0.00038395,81703.0,81702.0,0.27354]
[1743395538865,0.00038395,81703.0,81702.0,0.289779]
[1743395539036,0.00404133,81703.0,81702.0,0.27754]
[1743395539218,0.00404133,81703.0,81702.0,0.28154]
[1743395539618,0.00404133,81703.0,81702.0,0.293779]
[1743395539803,0.00038395,81703.0,81702.0,0.293779]
[1743395542669,0.00038395,81703.0,81702.0,0.151139]
[1743395542972,0.00038395,81703.0,81702.0,0.538571]
[1743395544512,0.00038395,81703.0,81702.0,0.28154]
[1743395544856,0.00404133,81703.0,81702.0,0.28154]
[1743395545035,0.00038395,81703.0,81702.0,0.28154]
[1743395545227,0.00404133,81703.0,81702.0,0.1389]
[1743395545450,0.00404133,81703.0,81702.0,0.2815]
[1743395545850,0.00404133,81703.0,81702.0,0.293739]
[1743395546033,0.00038395,81703.0,81702.0,0.293739]
[1743395546254,0.00404133,81703.0,81702.0,0.293739]
[1743395546432,0.00038395,81703.0,81702.0,0.293739]
[1743395547036,0.00404133,81703.0,81702.0,0.2815]
[1743395547199,0.01628033,81703.0,81702.0,0.1994]
[1743395547422,0.01262295,81703.0,81702.0,0.1994]
[1743395547639,0.01628033,81703.0,81702.0,0.1994]
[1743395548039,0.01628033,81703.0,81702.0,0.1506]
[1743395548648,0.00404133,81703.0,81702.0,0.1506]
[1743395548886,0.00038395,81703.0,81702.0,0.391392]
[1743395549089,0.00038395,81703.0,81702.0,0.234139]
[1743395549295,0.0040305,81703.0,81702.0,0.234139]
[1743395549613,0.0040305,81703.0,81702.0,0.230139]
[1743395550113,0.0040305,81703.0,81702.0,0.2179]
[1743395550694,0.0040305,81703.0,81702.0,0.2219]
[1743395550858,0.0040305,81703.0,81702.0,0.2229]
[1743395551240,0.0040305,81703.0,81702.0,0.2219]
[1743395551452,0.0040305,81703.0,81702.0,0.2179]
[1743395551622,0.0040305,81703.0,81702.0,0.466692]
[1743395551821,0.0040305,81703.0,81702.0,0.474931]
[1743395552247,0.00038395,81703.0,81702.0,0.477931]
[1743395552472,0.00038395,81703.0,81702.0,0.49247185]
[1743395552677,0.00038395,81703.0,81702.0,0.53947185]
[1743395552886,0.00038395,81703.0,81702.0,0.54347185]
[1743395553372,0.0040305,81703.0,81702.0,0.54347185]
[1743395553594,0.00038395,81703.0,81702.0,0.54347185]
[1743395553787,0.0040305,81703.0,81702.0,0.54347185]
[1743395553992,0.00038395,81703.0,81702.0,0.54347185]
[1743395554540,0.00038395,81703.0,81702.0,0.66375668]
[1743395555663,0.00038395,81703.0,81702.0,0.54347185]
[1743395557723,0.00038395,81703.0,81702.0,0.67801127]
[1743395558621,0.00038395,81703.0,81702.0,0.67501127]
[1743395558854,0.00038395,81703.0,81702.0,0.68101127]
[1743395559072,0.00038395,81703.0,81702.0,0.67701127]
[1743395559425,0.00038395,81703.0,81702.0,0.68301127]
[1743395560437,0.00028784,81703.0,81702.0,0.68301127]
[1743395563155,8.4e-07,81703.0,81702.0,0.98301127]
[1743395563388,8.4e-07,81703.0,81702.0,1.00801127]
[1743395564315,8.4e-07,81703.0,81702.0,1.00201127]
[1743395564714,0.00016904,81703.0,81702.0,0.99601127]
[1743395564859,0.00016904,81703.0,81702.0,1.00201127]
[1743395565284,0.00016904,81703.0,81702.0,0.97201127]
[1743395565904,0.00016904,81703.0,81702.0,0.97801127]
[1743395566995,0.01240804,81703.0,81702.0,0.2769]
[1743395567379,0.00399013,81703.0,81702.0,0.1546]
[1743395567572,0.00399013,81703.0,81702.0,0.16914085]
[1743395568306,0.00399013,81703.0,81702.0,0.16314085]
[1743395568503,0.00399013,81703.0,81702.0,0.16714085]
[1743395568727,0.00399013,81703.0,81702.0,0.1526]
[1743395569023,0.24877913,81703.0,81702.0,0.1526]
[1743395569204,0.26101813,81703.0,81702.0,0.1466]
[1743395569717,0.26101813,81703.0,81702.0,0.1516]
[1743395570542,0.26101813,81703.0,81702.0,0.1466]
[1743395570750,0.26101813,81703.0,81702.0,0.1426]
[1743395571159,0.26101813,81703.0,81702.0,0.1466]
[1743395572288,0.26101813,81703.0,81702.0,0.1506]
[1743395572907,0.01622913,81703.0,81702.0,0.1506]
[1743395573082,0.26101813,81703.0,81702.0,0.1506]
[1743395574417,0.26101813,81703.0,81702.0,0.008]
[1743395574623,0.34161813,81703.0,81702.0,0.008]
[1743395575319,0.34161813,81703.0,81702.0,0.004]
[1743395575494,0.34161813,81703.0,81702.0,0.005]
[1743395575883,0.34161813,81703.0,81702.0,0.0053364]
[1743395576385,0.34161813,81703.0,81702.0,0.0003364]
[1743395577397,0.26101813,81703.0,81702.0,0.0003364]
[1743395582390,0.28900072,81703.0,81702.0,0.0003364]
[1743395582586,0.26101813,81703.0,81702.0,0.0003364]
[1743395586210,0.39251813,81703.0,81702.0,0.0003364]
[1743395586413,0.69251813,81703.0,81702.0,0.0003364]
[1743395588467,0.39251813,81703.0,81702.0,0.0003364]
[1743395588646,0.34381813,81703.0,81702.0,0.0003364]
[1743395590282,0.26101813,81703.0,81702.0,0.0003364]
[1743395592672,0.24877913,81703.0,81702.0,0.0003364]
[1743395592879,0.26101813,81703.0,81702.0,0.0003364]
[1743395609119,0.28061812,81704.0,81702.0,0.0003364]
[1743395610466,0.0001682,81703.0,81702.0,0.0003364]
[1743395610624,0.0124072,81703.0,81702.0,0.0003364]
[1743395611024,0.2571962,81703.0,81702.0,0.0003364]
[1743395616205,0.78502102,81703.0,81702.0,4e-07]
[1743395616435,0.8571183,81703.0,81702.0,4e-07]
[1743395616632,0.75429348,81703.0,81702.0,4e-07]
[1743395616845,0.79027144,81703.0,81702.0,4e-07]
[1743395617194,0.81458793,81703.0,81702.0,4e-07]
[1743395617942,0.634563,81692.0,81691.0,8e-07]
[1743395618140,0.634563,81692.0,81691.0,4.795e-05]
[1743395618346,0.75416028,81692.0,81691.0,9.5e-07]
[1743395619359,0.79009728,81692.0,81691.0,9.5e-07]
[1743395620451,0.79309728,81692.0,81691.0,9.5e-07]
[1743395621186,0.79609728,81692.0,81691.0,9.5e-07]
[1743395621410,0.90973852,81692.0,81691.0,9.5e-07]
[1743395622642,1.1847705,81692.0,81691.0,3.5e-07]
[1743395622819,0.90973852,81692.0,81691.0,3.5e-07]
[1743395623622,0.79609728,81692.0,81691.0,3.5e-07]
[1743395624630,0.76086126,81692.0,81691.0,3.5e-07]
[1743395624830,0.724,81692.0,81691.0,3.5e-07]
[1743395625032,0.688063,81692.0,81691.0,3.5e-07]
[1743395628349,0.563063,81692.0,81691.0,3.5e-07]
[1743395628970,0.006,81692.0,81691.0,3.5e-07]
[1743395629176,0.006,81692.0,81691.0,0.07580035]
[1743395629388,0.006,81692.0,81691.0,0.13684135]
[1743395629604,0.006,81692.0,81691.0,0.12460035]
[1743395629807,0.018241,81692.0,81691.0,0.12460035]
[1743395630181,0.015241,81692.0,81691.0,0.12460035]
[1743395630396,0.012241,81692.0,81691.0,0.12460035]
[1743395630545,0.013241,81692.0,81691.0,0.12460035]
[1743395630761,0.013241,81692.0,81691.0,0.12660035]
[1743395631121,0.012241,81692.0,81691.0,0.12660035]
[1743395631479,0.012241,81692.0,81691.0,0.12960035]
[1743395631844,0.012241,81692.0,81691.0,0.14764035]
[1743395633266,0.012241,81692.0,81691.0,0.14464035]
[1743395633473,0.012241,81692.0,81691.0,0.14664035]
[1743395633891,0.0124092,81692.0,81691.0,0.14664035]
[1743395634099,0.0124092,81692.0,81691.0,0.14464035]
[1743395634510,0.0124092,81692.0,81691.0,0.14664035]
[1743395636489,0.0124092,81692.0,81691.0,0.00400035]
[1743395636696,0.0124092,81692.0,81691.0,0.14660035]
[1743395636945,0.0124092,81692.0,81691.0,0.00400035]
[1743395641612,0.0124092,81692.0,81691.0,0.00319637]
[1743395642783,0.0124092,81692.0,81691.0,0.14579637]
[1743395643239,0.0124092,81692.0,81691.0,0.00319637]
[1743395644197,0.012241,81687.0,81686.0,0.1426]
[1743395644405,0.257077,81687.0,81686.0,0.1426]
[1743395645386,0.257077,81687.0,81686.0,0.1446]
[1743395646667,0.0001682,81692.0,81687.0,0.1218]
[1743395646881,0.2449922,81692.0,81687.0,0.1218]
[1743395647086,0.257071,81690.0,81687.0,0.1218]
[1743395647482,0.012241,81689.0,81687.0,0.1218]
[1743395647811,0.244825,81691.0,81687.0,0.1218]
[1743395647969,0.257066,81691.0,81687.0,0.1228]
[1743395648416,0.012241,81691.0,81687.0,0.1238]
[1743395648615,0.012241,81691.0,81687.0,0.1228]
[1743395648821,0.0001682,81692.0,81691.0,0.257066]
[1743395648967,0.0001682,81692.0,81691.0,0.332866]
[1743395650395,0.0001682,81692.0,81691.0,0.2184]
[1743395650812,0.0001682,81692.0,81691.0,0.2254]
[1743395654049,0.0001682,81692.0,81691.0,0.470225]
[1743395654253,0.0001682,81692.0,81691.0,0.482466]
[1743395657709,0.0001682,81692.0,81691.0,0.530066]
[1743395658651,0.0001682,81692.0,81691.0,0.5304024]
[1743395658837,0.5001682,81692.0,81691.0,0.5304024]
[1743395659664,0.5001682,81692.0,81691.0,0.54494325]
[1743395659837,0.5001682,81692.0,81691.0,0.66522808]
[1743395660918,0.5001682,81692.0,81691.0,0.65822808]
[1743395661331,0.5001682,81692.0,81691.0,1.30414808]
[1743395661875,0.5001682,81692.0,81691.0,1.29914808]
[1743395662738,0.5001682,81692.0,81691.0,1.15654808]
[1743395662942,0.5001682,81692.0,81691.0,1.29910808]
[1743395663341,0.5001682,81692.0,81691.0,1.30510808]
[1743395672028,0.5001682,81692.0,81691.0,1.31010808]
[1743395672604,0.5001682,81692.0,81691.0,1.33304265]
[1743395672788,0.5001682,81692.0,81691.0,1.32704265]
[1743395672997,0.5001682,81692.0,81691.0,1.74634265]
[1743395673200,0.5001682,81692.0,81691.0,1.74734265]
[1743395673457,0.5001682,81692.0,81691.0,1.75334265]
[1743395673665,0.5001682,81692.0,81691.0,1.88254265]
[1743395673869,0.5001682,81692.0,81691.0,1.84760808]
[1743395674068,0.5001682,81692.0,81691.0,1.85960808]
[1743395676430,0.5001682,81692.0,81691.0,1.89640408]
[1743395677978,0.5001682,81692.0,81691.0,1.61964408]
[1743395678182,0.5001682,81692.0,81691.0,1.72536808]
[1743395678942,0.5001682,81692.0,81691.0,1.73036808]
[1743395679546,0.5001682,81692.0,81691.0,1.58284808]
[1743395679706,0.5001682,81692.0,81691.0,1.72536808]
[1743395686349,0.5001682,81692.0,81691.0,1.73036808]
[1743395687759,0.5001682,81692.0,81691.0,1.72536808]
[1743395688510,0.5001682,81692.0,81691.0,1.58284808]
[1743395688719,0.5001682,81692.0,81691.0,1.64956808]
[1743395690318,0.5001682,81692.0,81691.0,1.60196808]
[1743395691320,0.5001682,81692.0,81691.0,1.59596808]
[1743395691875,0.5001682,81692.0,81691.0,1.59496808]
[1743395692162,0.5001682,81692.0,81691.0,1.60096808]
[1743395692366,0.5001682,81692.0,81691.0,1.68276808]
[1743395693135,0.5001682,81692.0,81691.0,1.68776808]
[1743395693459,0.5001682,81692.0,81691.0,1.73756808]
[1743395695506,0.5001682,81692.0,81691.0,1.73156808]
[1743395695845,0.5001682,81692.0,81691.0,1.73756808]
[1743395696297,0.5001682,81692.0,81691.0,1.73156808]
[1743395696635,2e-07,81692.0,81691.0,2.19176808]
[1743395697168,2e-07,81692.0,81691.0,2.18676808]
[1743395697370,2e-07,81692.0,81691.0,2.19276808]
[1743395697798,2e-07,81692.0,81691.0,2.18076808]
[1743395697972,2e-07,81692.0,81691.0,2.18676808]
[1743395698674,2e-07,81692.0,81691.0,2.05756808]
[1743395699142,2e-07,81692.0,81691.0,2.06356808]
[1743395699784,2e-07,81692.0,81691.0,1.92104808]
[1743395699985,2e-07,81692.0,81691.0,2.06356808]
[1743395700412,2e-07,81692.0,81691.0,1.92104808]
[1743395700777,2e-07,81692.0,81691.0,2.06356808]
[1743395704382,2e-07,81692.0,81691.0,2.08652819]
[1743395705055,0.0001684,81692.0,81691.0,2.08652819]
[1743395705871,0.0001684,81692.0,81691.0,1.92446734]
[1743395706071,0.0001684,81692.0,81691.0,1.91034734]
[1743395706248,0.0001684,81692.0,81691.0,1.92488819]
[1743395706450,0.0001684,81692.0,81691.0,1.76786734]
[1743395706653,0.0001684,81692.0,81691.0,1.92488819]
[1743395706969,0.0001684,81692.0,81691.0,1.90192808]
[1743395707536,0.0001684,81692.0,81691.0,1.89592808]
[1743395707892,0.0001684,81692.0,81691.0,1.88992808]
[1743395708201,0.0001684,81692.0,81691.0,1.90192808]
[1743395711266,0.0001684,81692.0,81691.0,1.75944808]
[1743395711413,0.0001684,81692.0,81691.0,1.98912808]
[1743395712079,0.0461,81722.0,81713.0,0.256996]
[1743395712281,0.124,81722.0,81713.0,0.53430168]
[1743395712480,0.00206924,81714.0,81713.0,0.53430168]
[1743395714234,0.00206924,81714.0,81713.0,0.53630168]
[1743395714439,0.00206924,81714.0,81713.0,0.53730168]
[1743395714641,0.00206924,81714.0,81713.0,0.53230168]
[1743395715078,0.00206924,81714.0,81713.0,0.17225785]
[1743395715494,0.00206924,81714.0,81713.0,0.19725662]
[1743395716033,0.00206924,81714.0,81713.0,0.83297662]
[1743395716468,0.00223744,81714.0,81713.0,0.83297662]
[1743395717250,0.00223744,81714.0,81713.0,0.82073962]
[1743395717479,0.07953744,81714.0,81713.0,0.82073962]
[1743395717884,0.00223744,81714.0,81713.0,0.83297662]
[1743395718294,0.00223744,81714.0,81713.0,0.95326145]
[1743395718500,0.00223744,81714.0,81713.0,0.83297662]
[1743395719684,0.00223744,81714.0,81713.0,0.67825962]
[1743395719891,0.00223744,81714.0,81713.0,0.82073962]
[1743395720850,0.00223744,81714.0,81713.0,0.83297662]
[1743395723033,0.00223744,81714.0,81713.0,0.82073962]
[1743395723842,0.06317444,81714.0,81713.0,0.80619877]
[1743395724060,0.15318042,81714.0,81713.0,0.63872]
[1743395725659,0.15318042,81714.0,81713.0,0.003]
[1743395728042,0.15318042,81714.0,81713.0,0.001]
[1743395728453,0.257053,81695.0,81694.0,0.65022085]
[1743395728653,0.257053,81695.0,81694.0,0.79270085]
[1743395728875,0.257053,81695.0,81694.0,0.81722089]
[1743395729608,0.257053,81695.0,81694.0,0.67474089]
[1743395729812,0.305453,81695.0,81694.0,0.66020004]
[1743395730020,0.305453,81695.0,81694.0,0.80268004]
[1743395730230,0.305453,81695.0,81694.0,0.66520004]
[1743395730432,0.305453,81695.0,81694.0,0.78316]
[1743395731134,0.305453,81695.0,81694.0,0.78716]
[1743395731913,0.257053,81695.0,81694.0,0.78716]
[1743395732180,0.257044,81698.0,81694.0,0.78716]
[1743395732542,0.2448,81700.0,81695.0,0.01454085]
[1743395732733,0.01224,81698.0,81695.0,0.01454085]
[1743395733081,0.257039,81700.0,81695.0,0.01454085]
[1743395733416,0.244804,81698.0,81695.0,0.01454085]
[1743395734161,0.25705,81696.0,81695.0,0.01454085]
[1743395734308,0.25705,81696.0,81695.0,0.02054085]
[1743395734752,0.25705,81696.0,81695.0,0.01754085]
[1743395735147,0.25705,81696.0,81695.0,0.02054085]
[1743395735351,0.25705,81696.0,81695.0,0.01754085]
[1743395735554,0.25705,81696.0,81695.0,0.01454085]
[1743395735767,0.25705,81696.0,81695.0,0.02254085]
[1743395736152,0.25705,81696.0,81695.0,0.01854085]
[1743395736599,0.25705,81696.0,81695.0,0.02354085]
[1743395737372,0.01224,81697.0,81695.0,0.02354085]
[1743395737571,0.01224,81698.0,81695.0,0.02354085]
[1743395737772,0.01224,81697.0,81695.0,0.02354085]
[1743395738552,0.01224,81698.0,81695.0,0.01954085]
[1743395738724,0.244807,81697.0,81695.0,0.02254085]
[1743395739051,0.257047,81697.0,81695.0,0.01954085]
[1743395739172,0.257047,81697.0,81695.0,0.01454085]
[1743395739374,0.257047,81697.0,81695.0,0.01854085]
[1743395739574,0.09184,81696.0,81695.0,0.004]
[1743395739783,0.01224,81696.0,81695.0,0.004]
[1743395740006,0.257046,81698.0,81695.0,0.004]
[1743395740206,0.257049,81697.0,81695.0,0.004]
[1743395740439,0.244806,81698.0,81695.0,0.004]
[1743395740740,0.01224,81699.0,81695.0,0.004]
[1743395740741,0.01224,81699.0,81695.0,0.0053362]
[1743395740965,0.012239,81702.0,81696.0,0.01454085]
[1743395741107,0.012239,81704.0,81700.0,0.01454085]
[1743395741316,0.012239,81703.0,81700.0,0.01454085]
[1743395741487,0.012239,81703.0,81698.0,0.01454085]
[1743395742335,0.257034,81701.0,81697.0,0.01454085]
[1743395742507,0.012239,81700.0,81697.0,0.01454085]
[1743395742919,0.256879,81700.0,81697.0,0.01454085]
[1743395743365,0.256879,81700.0,81698.0,0.002]
[1743395743580,0.012239,81701.0,81698.0,0.002]
[1743395743755,0.012239,81704.0,81700.0,0.01454085]
[1743395744014,0.257022,81705.0,81700.0,0.01454085]
[1743395744231,0.012239,81704.0,81700.0,0.01454085]
[1743395744443,0.0001681,81713.0,81706.0,0.01454085]
[1743395744653,0.0001681,81713.0,81712.0,0.02677885]
[1743395744859,0.0001681,81713.0,81712.0,0.22911079]
[1743395745062,0.0001681,81713.0,81712.0,0.22666368]
[1743395747045,0.0001681,81713.0,81712.0,0.25721839]
[1743395747453,0.0001681,81713.0,81712.0,0.40469839]
[1743395749338,0.01933455,81713.0,81712.0,0.40469839]
[1743395750514,0.05586733,81732.0,81727.0,0.244717]
[1743395750718,0.05586733,81732.0,81728.0,0.14244]
[1743395751101,0.05586733,81732.0,81729.0,0.01454085]
[1743395753080,0.05591447,81732.0,81729.0,0.01454085]
[1743395753274,0.05591447,81732.0,81729.0,0.01554085]
[1743395754809,0.07507988,81732.0,81729.0,0.01554085]
[1743395755381,0.01921255,81732.0,81729.0,0.01554085]
[1743395756222,0.26391455,81732.0,81729.0,0.01554085]
[1743395756659,0.244708,81730.0,81729.0,0.01554085]
[1743395756876,0.339243,81730.0,81729.0,0.001]
[1743395757068,0.339243,81730.0,81729.0,0.14344]
[1743395757618,0.339243,81730.0,81729.0,0.14244]
[1743395757874,0.339243,81730.0,81729.0,0.14444]
[1743395758381,0.256943,81730.0,81729.0,0.14444]
[1743395758578,4.714e-05,81732.0,81729.0,0.14444]
[1743395758973,4.714e-05,81732.0,81731.0,0.012235]
[1743395759140,4.714e-05,81732.0,81731.0,0.27148085]
[1743395760149,4.714e-05,81732.0,81731.0,0.39176568]
[1743395760558,0.01921121,81732.0,81731.0,0.39176568]
[1743395760758,0.01921121,81732.0,81731.0,0.13482568]
[1743395761017,0.01921121,81732.0,81731.0,0.01454085]
[1743395761177,0.01921121,81732.0,81731.0,0.02677585]
[1743395761380,0.01921121,81732.0,81731.0,0.02977585]
[1743395761540,0.01921121,81732.0,81731.0,0.03277585]
[1743395762971,0.01921121,81732.0,81731.0,0.02977585]
[1743395763166,0.01921121,81732.0,81731.0,0.03377585]
[1743395763755,0.01921121,81732.0,81731.0,0.15406068]
[1743395763958,0.01921121,81732.0,81731.0,0.14182568]
[1743395764366,0.01921121,81732.0,81731.0,0.02154085]
[1743395764590,0.01921121,81732.0,81731.0,0.26624585]
[1743395765305,0.01921121,81732.0,81731.0,0.27848085]
[1743395765918,0.01937941,81732.0,81731.0,0.27848085]
[1743395767378,0.00021534,81732.0,81731.0,0.27848085]
[1743395767810,0.00021534,81732.0,81731.0,0.02154085]
[1743395768038,0.01245034,81732.0,81731.0,0.02154085]
[1743395768532,0.00021534,81732.0,81731.0,0.02154085]
[1743395769901,0.01245034,81732.0,81731.0,0.16394085]
[1743395770067,0.01245034,81732.0,81731.0,0.1494]
[1743395770284,0.01938038,81732.0,81731.0,0.1494]
[1743395770699,0.01938038,81732.0,81731.0,0.161635]
[1743395771798,0.01938038,81732.0,81731.0,0.019235]
[1743395772000,0.01938038,81732.0,81731.0,0.161635]
[1743395776212,0.01938038,81732.0,81731.0,0.17617585]
[1743395776586,0.01938038,81732.0,81731.0,0.25227585]
[1743395777286,0.00021534,81732.0,81731.0,0.25227585]
[1743395778029,0.00021534,81732.0,81731.0,0.37256068]
[1743395778229,0.00021534,81732.0,81731.0,0.37289688]
[1743395779756,0.00021534,81732.0,81731.0,0.36889688]
[1743395780152,0.00021534,81732.0,81731.0,0.37489688]
[1743395780297,0.01937711,81732.0,81731.0,0.37189688]
[1743395780497,0.01937711,81732.0,81731.0,0.36589688]
[1743395780697,0.01937711,81732.0,81731.0,0.37089688]
[1743395780942,0.01937711,81732.0,81731.0,0.37689688]
[1743395784090,0.01937711,81732.0,81731.0,0.38951886]
[1743395786533,0.01937711,81732.0,81731.0,0.37689688]
[1743395787246,0.00021534,81732.0,81731.0,0.37689688]
[1743395788422,0.00021534,81732.0,81731.0,0.02587705]
[1743395788626,0.00021534,81732.0,81731.0,0.18047205]
[1743395788825,0.00021534,81732.0,81731.0,0.1536962]
[1743395789013,0.00021534,81732.0,81731.0,0.16823705]
[1743395790259,0.27631518,81732.0,81731.0,0.1476962]
[1743395790460,0.27631518,81732.0,81731.0,0.1486962]
[1743395790659,0.35331518,81732.0,81731.0,0.0063362]
[1743395790870,0.35331518,81732.0,81731.0,0.1486962]
[1743395791079,0.35331518,81732.0,81731.0,0.1536962]
[1743395791302,0.35331518,81732.0,81731.0,0.1486962]
[1743395791950,0.35331518,81732.0,81731.0,0.0093362]
[1743395792293,0.35331518,81732.0,81731.0,0.0033362]
[1743395792491,0.70311518,81732.0,81731.0,0.0033362]
[1743395792695,0.70311518,81732.0,81731.0,2e-07]
[1743395792905,0.73997644,81732.0,81731.0,2e-07]
[1743395793098,0.73997644,81732.0,81716.0,0.14236]
[1743395793099,0.256984,81717.0,81716.0,0.14236]
[1743395793336,0.333984,81717.0,81716.0,0.14236]
[1743395793832,0.35315166,81717.0,81716.0,0.14236]
[1743395794365,0.35315166,81717.0,81716.0,0.14636]
[1743395794569,0.36576725,81717.0,81716.0,0.14936]
[1743395795614,0.36576725,81717.0,81716.0,0.007]
[1743395796019,0.28876725,81717.0,81716.0,0.007]
[1743395796219,0.27615166,81717.0,81716.0,0.003]
[1743395796810,0.27615166,81717.0,81716.0,0.002]
[1743395796996,0.07381396,81717.0,81712.0,0.1424]
[1743395797201,0.256996,81713.0,81712.0,0.1424]
[1743395798266,0.256996,81713.0,81712.0,0.1444]
[1743395799128,0.256996,81713.0,81712.0,0.1464]
[1743395799526,0.256996,81713.0,81712.0,0.1444]
[1743395799940,0.244753,81715.0,81712.0,0.1474]
[1743395800137,0.25699,81715.0,81712.0,0.1474]
[1743395800336,0.01916788,81713.0,81712.0,0.1474]
[1743395801058,0.26392688,81713.0,81712.0,0.1474]
[1743395801319,0.27616388,81713.0,81712.0,0.1474]
[1743395801689,0.35706388,81713.0,81712.0,0.1474]
[1743395801855,0.35706388,81713.0,81712.0,0.1444]
[1743395802057,0.35706388,81713.0,81712.0,0.1447362]
[1743395802254,0.35706388,81713.0,81712.0,0.0043362]
[1743395802661,0.35706388,81713.0,81712.0,0.0023362]
[1743395803829,0.35706388,81713.0,81712.0,0.0053362]
[1743395806197,0.35706388,81713.0,81712.0,0.0023362]
[1743395806641,0.35906388,81713.0,81712.0,0.0023362]
[1743395807056,0.35906388,81713.0,81712.0,0.0003362]
[1743395807373,0.73590464,81713.0,81712.0,0.0003362]
[1743395807574,0.67675726,81713.0,81712.0,0.0003362]